[Event "Titled Tuesday Blitz November 08 Late 2022"]
[White "Bibilashvili, Lali"]
[Black "Burke, Paul"]
[WhiteFideId "13604236"]
[BlackFideId "2605767"]
[WhiteElo "1819"]
[BlackElo "1805"]
[Result "1/2-1/2"]
[Round "09"]
[TimeControl "180+1"]
[Date "2022.11.09"]
[WhiteClock "0:00:17"]
[BlackClock "0:00:11"]

1. c4 {[%clk 0:03:00]}  a6 {[%clk 0:02:58]} 2. Nf3 {[%clk 0:02:56]}  d6 {[%clk 0:02:59]} 3. e3 {[%clk 0:02:55]}  g6 {[%clk 0:02:59]} 4. d3 {[%clk 0:02:54]}  Nd7 {[%clk 0:02:58]} 5. Be2 {[%clk 0:02:54]}  h6 {[%clk 0:02:58]} 6. O-O {[%clk 0:02:54]}  Bg7 {[%clk 0:02:58]} 7. Nc3 {[%clk 0:02:54]}  e6 {[%clk 0:02:58]} 8. Rb1 {[%clk 0:02:54]}  Ne7 {[%clk 0:02:58]} 9. b4 {[%clk 0:02:54]}  b6 {[%clk 0:02:58]} 10. Qc2 {[%clk 0:02:52]}  Bb7 {[%clk 0:02:58]} 11. d4 {[%clk 0:02:51]}  O-O {[%clk 0:02:58]} 12. a4 {[%clk 0:02:46]}  f5 {[%clk 0:02:51]} 13. Ba3 {[%clk 0:02:45]}  e5 {[%clk 0:02:44]} 14. Rfd1 {[%clk 0:02:40]}  e4 {[%clk 0:02:34]} 15. Ne1 {[%clk 0:02:38]}  g5 {[%clk 0:02:27]} 16. c5 {[%clk 0:02:37]}  Nf6 {[%clk 0:02:19]} 17. Bc4+ {[%clk 0:02:18]}  Kh7 {[%clk 0:02:11]} 18. d5 {[%clk 0:02:17]}  Rb8 {[%clk 0:02:00]} 19. c6 {[%clk 0:02:11]}  Bc8 {[%clk 0:01:59]} 20. Ne2 {[%clk 0:02:08]}  Ng6 {[%clk 0:01:49]} 21. f3 {[%clk 0:02:03]}  Qe7 {[%clk 0:01:31]} 22. Bc1 {[%clk 0:01:55]}  Ne5 {[%clk 0:01:18]} 23. Nd4 {[%clk 0:01:47]}  Nxc4 {[%clk 0:01:12]} 24. Qxc4 {[%clk 0:01:46]}  exf3 {[%clk 0:00:47]} 25. gxf3 {[%clk 0:01:44]}  g4 {[%clk 0:00:34]} 26. f4 {[%clk 0:01:41]}  Ne4 {[%clk 0:00:34]} 27. Ng2 {[%clk 0:01:31]}  Rg8 {[%clk 0:00:19]} 28. Bb2 {[%clk 0:01:24]}  Bf6 {[%clk 0:00:19]} 29. Ne2 {[%clk 0:01:17]}  g3 {[%clk 0:00:18]} 30. h3 {[%clk 0:01:15]}  Nf2 {[%clk 0:00:16]} 31. Bxf6 {[%clk 0:00:31]}  Qxf6 {[%clk 0:00:16]} 32. h4 {[%clk 0:00:31]}  Ne4 {[%clk 0:00:14]} 33. Nd4 {[%clk 0:00:23]}  Rg4 {[%clk 0:00:13]} 34. Nf3 {[%clk 0:00:22]}  Nf2 {[%clk 0:00:12]} 35. Rf1 {[%clk 0:00:17]}  Nh3+ {[%clk 0:00:11]} 36. Kh1 {[%clk 0:00:17]}  Nf2+ {[%clk 0:00:11]} 37. Kg1 {[%clk 0:00:17]}  Nh3+ {[%clk 0:00:11]} 38. Kh1 {[%clk 0:00:17]}  Nf2+ {[%clk 0:00:11]} 39. Kg1 {[%clk 0:00:17]} 1/2-1/2


[Site "https://www.chess.com"]

[Event "Titled Tuesday Blitz November 08 Late 2022"]
[White "Bilan, Danila"]
[Black "Sibilio, Mario"]
[WhiteFideId "24161918"]
[BlackFideId "800422"]
[WhiteElo "2173"]
[BlackElo "2251"]
[Result "1-0"]
[Round "09"]
[TimeControl "180+1"]
[Date "2022.11.09"]
[WhiteClock "0:00:02"]
[BlackClock "0:00:01"]

1. d4 {[%clk 0:03:00]}  d6 {[%clk 0:02:57]} 2. Nf3 {[%clk 0:02:59]}  g6 {[%clk 0:02:55]} 3. Bg5 {[%clk 0:02:55]}  Bg7 {[%clk 0:02:52]} 4. c3 {[%clk 0:02:55]}  Nf6 {[%clk 0:02:49]} 5. Nbd2 {[%clk 0:02:50]}  O-O {[%clk 0:02:44]} 6. e4 {[%clk 0:02:50]}  h6 {[%clk 0:02:32]} 7. Bh4 {[%clk 0:02:49]}  g5 {[%clk 0:02:30]} 8. Bg3 {[%clk 0:02:48]}  Nh5 {[%clk 0:02:28]} 9. Bc4 {[%clk 0:02:47]}  e6 {[%clk 0:02:26]} 10. O-O {[%clk 0:02:47]}  Nd7 {[%clk 0:02:20]} 11. Ne1 {[%clk 0:02:35]}  Nxg3 {[%clk 0:02:15]} 12. hxg3 {[%clk 0:02:36]}  c5 {[%clk 0:02:07]} 13. d5 {[%clk 0:02:35]}  Nb6 {[%clk 0:02:07]} 14. Bb3 {[%clk 0:02:27]}  exd5 {[%clk 0:02:05]} 15. exd5 {[%clk 0:02:27]}  f5 {[%clk 0:02:03]} 16. Nc2 {[%clk 0:02:08]}  Bd7 {[%clk 0:01:47]} 17. Ne3 {[%clk 0:02:04]}  f4 {[%clk 0:01:45]} 18. gxf4 {[%clk 0:02:04]}  Rxf4 {[%clk 0:01:40]} 19. Nec4 {[%clk 0:01:53]}  Nxc4 {[%clk 0:01:39]} 20. Bxc4 {[%clk 0:01:53]}  b5 {[%clk 0:01:29]} 21. Bd3 {[%clk 0:01:52]}  c4 {[%clk 0:01:24]} 22. Bc2 {[%clk 0:01:48]}  b4 {[%clk 0:01:22]} 23. g3 {[%clk 0:01:32]}  Rg4 {[%clk 0:01:02]} 24. Ne4 {[%clk 0:01:21]}  bxc3 {[%clk 0:00:51]} 25. bxc3 {[%clk 0:01:19]}  Be5 {[%clk 0:00:25]} 26. f3 {[%clk 0:01:07]}  Rxe4 {[%clk 0:00:23]} 27. Bxe4 {[%clk 0:01:01]}  Bxg3 {[%clk 0:00:17]} 28. Qc2 {[%clk 0:00:42]}  Bh3 {[%clk 0:00:14]} 29. Rfb1 {[%clk 0:00:31]}  Qf6 {[%clk 0:00:11]} 30. Rb7 {[%clk 0:00:24]}  Be5 {[%clk 0:00:09]} 31. Bh7+ {[%clk 0:00:19]}  Kh8 {[%clk 0:00:09]} 32. Qe4 {[%clk 0:00:13]}  Bxc3 {[%clk 0:00:06]} 33. Rab1 {[%clk 0:00:13]}  Bd4+ {[%clk 0:00:05]} 34. Kh2 {[%clk 0:00:13]}  g4 {[%clk 0:00:03]} 35. Rb8+ {[%clk 0:00:13]}  Rxb8 {[%clk 0:00:02]} 36. Rxb8+ {[%clk 0:00:14]}  Kg7 {[%clk 0:00:01]} 37. Rb7+ {[%clk 0:00:02]} 1-0


[Site "https://www.chess.com"]

[Event "Titled Tuesday Blitz November 08 Late 2022"]
[White "Bluebaum, Matthias"]
[Black "Lazavik, Denis"]
[WhiteFideId "24651516"]
[BlackFideId "13515110"]
[WhiteElo "2633"]
[BlackElo "2483"]
[Result "1-0"]
[Round "09"]
[TimeControl "180+1"]
[Date "2022.11.08"]
[WhiteClock "0:00:35"]
[BlackClock "0:00:03"]

1. d4 {[%clk 0:03:00]}  Nf6 {[%clk 0:02:59]} 2. c4 {[%clk 0:03:00]}  e6 {[%clk 0:03:00]} 3. Nc3 {[%clk 0:03:00]}  Bb4 {[%clk 0:02:59]} 4. e3 {[%clk 0:03:01]}  O-O {[%clk 0:02:59]} 5. Bd2 {[%clk 0:03:02]}  c5 {[%clk 0:02:59]} 6. a3 {[%clk 0:03:01]}  Bxc3 {[%clk 0:02:58]} 7. Bxc3 {[%clk 0:03:02]}  Ne4 {[%clk 0:02:57]} 8. Ne2 {[%clk 0:03:03]}  b6 {[%clk 0:02:56]} 9. d5 {[%clk 0:03:03]}  Ba6 {[%clk 0:02:50]} 10. Qd3 {[%clk 0:03:02]}  exd5 {[%clk 0:02:41]} 11. Qxd5 {[%clk 0:03:03]}  Qe7 {[%clk 0:02:40]} 12. b3 {[%clk 0:03:03]}  Nc6 {[%clk 0:02:33]} 13. Bb2 {[%clk 0:03:03]}  Rfe8 {[%clk 0:02:28]} 14. Ng3 {[%clk 0:03:04]}  Nf6 {[%clk 0:02:00]} 15. Qg5 {[%clk 0:02:37]}  h6 {[%clk 0:01:35]} 16. Qf4 {[%clk 0:02:37]}  Ne5 {[%clk 0:01:06]} 17. Nf5 {[%clk 0:02:25]}  Qe6 {[%clk 0:01:06]} 18. Rd1 {[%clk 0:02:26]}  Ng6 {[%clk 0:00:53]} 19. Nxh6+ {[%clk 0:01:54]}  Kh7 {[%clk 0:00:52]} 20. Bd3 {[%clk 0:01:54]}  Bb7 {[%clk 0:00:14]} 21. Bxf6 {[%clk 0:01:31]}  Qxf6 {[%clk 0:00:12]} 22. Qxf6 {[%clk 0:01:26]}  gxf6 {[%clk 0:00:13]} 23. Nxf7 {[%clk 0:01:27]}  Bc6 {[%clk 0:00:06]} 24. Nd6 {[%clk 0:01:26]}  Re6 {[%clk 0:00:06]} 25. Bf5 {[%clk 0:01:25]}  Re7 {[%clk 0:00:04]} 26. h4 {[%clk 0:01:19]}  Kg7 {[%clk 0:00:05]} 27. Bc2 {[%clk 0:01:19]}  Re6 {[%clk 0:00:04]} 28. h5 {[%clk 0:01:18]}  Ne5 {[%clk 0:00:04]} 29. h6+ {[%clk 0:01:09]}  Kh8 {[%clk 0:00:04]} 30. f3 {[%clk 0:00:59]}  Re7 {[%clk 0:00:04]} 31. Kf2 {[%clk 0:00:59]}  Rf8 {[%clk 0:00:04]} 32. e4 {[%clk 0:00:55]}  Ng6 {[%clk 0:00:02]} 33. Nf5 {[%clk 0:00:54]}  Rh7 {[%clk 0:00:02]} 34. Rd6 {[%clk 0:00:53]}  Ne5 {[%clk 0:00:02]} 35. Ne3 {[%clk 0:00:50]}  Rhf7 {[%clk 0:00:02]} 36. f4 {[%clk 0:00:48]}  Ng6 {[%clk 0:00:02]} 37. g3 {[%clk 0:00:49]}  Ne7 {[%clk 0:00:03]} 38. Rdd1 {[%clk 0:00:43]}  f5 {[%clk 0:00:03]} 39. Nd5 {[%clk 0:00:40]}  Ng6 {[%clk 0:00:02]} 40. exf5 {[%clk 0:00:39]}  Ne7 {[%clk 0:00:02]} 41. g4 {[%clk 0:00:38]}  Nc8 {[%clk 0:00:02]} 42. Rhe1 {[%clk 0:00:35]}  Nd6 {[%clk 0:00:03]} 43. Nc3 {[%clk 0:00:35]}  Ne8 {[%clk 0:00:03]} 44. g5 {[%clk 0:00:35]} 1-0


[Site "https://www.chess.com"]

[Event "Titled Tuesday Blitz November 08 Late 2022"]
[White "Bortnyk, Olexandr"]
[Black "Melkumyan, Hrant"]
[WhiteFideId "14120828"]
[BlackFideId "13302485"]
[WhiteElo "2723"]
[BlackElo "2604"]
[Result "1-0"]
[Round "09"]
[TimeControl "180+1"]
[Date "2022.11.08"]
[WhiteClock "0:00:16"]
[BlackClock "0:00:02"]

1. e4 {[%clk 0:02:36]}  c6 {[%clk 0:02:59]} 2. d4 {[%clk 0:02:36]}  d5 {[%clk 0:02:59]} 3. Nc3 {[%clk 0:02:37]}  dxe4 {[%clk 0:02:57]} 4. Nxe4 {[%clk 0:02:38]}  Nf6 {[%clk 0:02:57]} 5. Nxf6+ {[%clk 0:02:38]}  exf6 {[%clk 0:02:58]} 6. c3 {[%clk 0:02:39]}  Bd6 {[%clk 0:02:58]} 7. Bd3 {[%clk 0:02:40]}  O-O {[%clk 0:02:59]} 8. Qc2 {[%clk 0:02:41]}  Re8+ {[%clk 0:02:59]} 9. Ne2 {[%clk 0:02:42]}  h5 {[%clk 0:02:58]} 10. O-O {[%clk 0:02:42]}  Nd7 {[%clk 0:02:56]} 11. Nf4 {[%clk 0:02:42]}  h4 {[%clk 0:02:41]} 12. Qd1 {[%clk 0:02:42]}  Nf8 {[%clk 0:02:28]} 13. Qh5 {[%clk 0:02:41]}  Qc7 {[%clk 0:02:12]} 14. g3 {[%clk 0:02:34]}  g6 {[%clk 0:01:50]} 15. Qh6 {[%clk 0:02:30]}  f5 {[%clk 0:01:23]} 16. Qxh4 {[%clk 0:02:21]}  Be6 {[%clk 0:01:12]} 17. Bd2 {[%clk 0:02:05]}  b5 {[%clk 0:01:09]} 18. Rfe1 {[%clk 0:02:05]}  Bc4 {[%clk 0:01:05]} 19. Bxf5 {[%clk 0:01:56]}  Rxe1+ {[%clk 0:00:50]} 20. Rxe1 {[%clk 0:01:57]}  gxf5 {[%clk 0:00:51]} 21. Qg5+ {[%clk 0:01:31]}  Kh8 {[%clk 0:00:20]} 22. Qf6+ {[%clk 0:00:56]}  Kg8 {[%clk 0:00:19]} 23. Nh5 {[%clk 0:00:57]}  Ne6 {[%clk 0:00:19]} 24. Qh6 {[%clk 0:00:57]}  f6 {[%clk 0:00:08]} 25. Qg6+ {[%clk 0:00:29]}  Kh8 {[%clk 0:00:05]} 26. Qxf6+ {[%clk 0:00:29]}  Kh7 {[%clk 0:00:04]} 27. Qxf5+ {[%clk 0:00:29]}  Kg8 {[%clk 0:00:03]} 28. Rxe6 {[%clk 0:00:22]}  Bxe6 {[%clk 0:00:03]} 29. Qxe6+ {[%clk 0:00:22]}  Kh7 {[%clk 0:00:03]} 30. Nf6+ {[%clk 0:00:18]}  Kh8 {[%clk 0:00:03]} 31. Ne8 {[%clk 0:00:16]}  Bf8 {[%clk 0:00:02]} 32. Nxc7 {[%clk 0:00:16]} 1-0


[Site "https://www.chess.com"]

[Event "Titled Tuesday Blitz November 08 Late 2022"]
[White "Da Matta, Eduardo Cesar"]
[Black "Capp, Stephen"]
[WhiteFideId "2193108"]
[BlackFideId "2027089"]
[WhiteElo "1981"]
[BlackElo "2170"]
[Result "0-1"]
[Round "09"]
[TimeControl "180+1"]
[Date "2022.11.09"]
[WhiteClock "0:00:16"]
[BlackClock "0:00:16"]

1. d4 {[%clk 0:03:00]}  Nf6 {[%clk 0:02:58]} 2. c4 {[%clk 0:03:00]}  e6 {[%clk 0:02:54]} 3. Nc3 {[%clk 0:03:00]}  Bb4 {[%clk 0:02:54]} 4. e3 {[%clk 0:03:00]}  c5 {[%clk 0:02:52]} 5. Bd3 {[%clk 0:03:00]}  Nc6 {[%clk 0:02:51]} 6. Ne2 {[%clk 0:03:01]}  d5 {[%clk 0:02:50]} 7. cxd5 {[%clk 0:03:00]}  Nxd5 {[%clk 0:02:48]} 8. O-O {[%clk 0:02:56]}  cxd4 {[%clk 0:02:45]} 9. exd4 {[%clk 0:02:55]}  O-O {[%clk 0:02:38]} 10. a3 {[%clk 0:02:55]}  Be7 {[%clk 0:02:37]} 11. Bc2 {[%clk 0:02:46]}  Bf6 {[%clk 0:02:32]} 12. Qd3 {[%clk 0:02:46]}  g6 {[%clk 0:02:32]} 13. Ne4 {[%clk 0:02:42]}  Bg7 {[%clk 0:02:32]} 14. Bg5 {[%clk 0:02:38]}  Qc7 {[%clk 0:02:27]} 15. Rac1 {[%clk 0:02:33]}  Qb6 {[%clk 0:02:26]} 16. Rfd1 {[%clk 0:02:11]}  Bd7 {[%clk 0:02:26]} 17. Nc5 {[%clk 0:02:06]}  Qc7 {[%clk 0:02:17]} 18. Bb3 {[%clk 0:02:05]}  Qd6 {[%clk 0:02:06]} 19. Nxb7 {[%clk 0:02:00]}  Qb8 {[%clk 0:01:59]} 20. Nc5 {[%clk 0:02:00]}  Qd6 {[%clk 0:01:54]} 21. Nxd7 {[%clk 0:01:42]}  Qxd7 {[%clk 0:01:53]} 22. Ba4 {[%clk 0:01:42]}  Rac8 {[%clk 0:01:53]} 23. Qa6 {[%clk 0:01:38]}  Nb6 {[%clk 0:01:49]} 24. Be3 {[%clk 0:01:10]}  Nxa4 {[%clk 0:01:32]} 25. Qxa4 {[%clk 0:01:11]}  Qd5 {[%clk 0:01:12]} 26. Nc3 {[%clk 0:01:05]}  Qh5 {[%clk 0:01:03]} 27. d5 {[%clk 0:01:01]}  Ne5 {[%clk 0:00:58]} 28. dxe6 {[%clk 0:00:52]}  fxe6 {[%clk 0:00:52]} 29. Qa5 {[%clk 0:00:43]}  Nf3+ {[%clk 0:00:45]} 30. gxf3 {[%clk 0:00:42]}  Qxa5 {[%clk 0:00:45]} 31. Ne4 {[%clk 0:00:40]}  Rxc1 {[%clk 0:00:40]} 32. Rxc1 {[%clk 0:00:41]}  Qf5 {[%clk 0:00:39]} 33. Rc7 {[%clk 0:00:29]}  Qxf3 {[%clk 0:00:36]} 34. Ng5 {[%clk 0:00:29]}  Qd1+ {[%clk 0:00:31]} 35. Kg2 {[%clk 0:00:28]}  Qg4+ {[%clk 0:00:30]} 36. Kf1 {[%clk 0:00:27]}  Bd4 {[%clk 0:00:19]} 37. Rc4 {[%clk 0:00:17]}  Qd1+ {[%clk 0:00:17]} 38. Kg2 {[%clk 0:00:18]}  Bxe3 {[%clk 0:00:17]} 39. Nxe6 {[%clk 0:00:16]}  Qd5+ {[%clk 0:00:16]} 0-1


[Site "https://www.chess.com"]

[Event "Titled Tuesday Blitz November 08 Late 2022"]
[White "Dahlgren, James Allen"]
[Black "Kaplan, Avi Harrison"]
[WhiteFideId "22256873"]
[BlackFideId "30934559"]
[WhiteElo "2183"]
[BlackElo "1983"]
[Result "0-1"]
[Round "09"]
[TimeControl "180+1"]
[Date "2022.11.09"]
[WhiteClock "0:00:02"]
[BlackClock "0:00:27"]

1. e4 {[%clk 0:02:58]}  c5 {[%clk 0:02:59]} 2. Nc3 {[%clk 0:02:58]}  d6 {[%clk 0:02:51]} 3. f4 {[%clk 0:02:58]}  Nc6 {[%clk 0:02:52]} 4. Nf3 {[%clk 0:02:59]}  Nf6 {[%clk 0:02:52]} 5. Bb5 {[%clk 0:02:59]}  Bd7 {[%clk 0:02:52]} 6. O-O {[%clk 0:02:58]}  e6 {[%clk 0:02:53]} 7. d4 {[%clk 0:02:57]}  cxd4 {[%clk 0:02:52]} 8. Nxd4 {[%clk 0:02:57]}  Be7 {[%clk 0:02:27]} 9. h3 {[%clk 0:02:53]}  O-O {[%clk 0:02:24]} 10. Be3 {[%clk 0:02:51]}  Qc7 {[%clk 0:02:17]} 11. Nxc6 {[%clk 0:02:45]}  Bxc6 {[%clk 0:02:17]} 12. Bxc6 {[%clk 0:02:44]}  Qxc6 {[%clk 0:02:18]} 13. Qd3 {[%clk 0:02:32]}  Rac8 {[%clk 0:02:15]} 14. Rad1 {[%clk 0:02:30]}  a6 {[%clk 0:02:13]} 15. Bd4 {[%clk 0:02:17]}  b5 {[%clk 0:02:00]} 16. a3 {[%clk 0:02:08]}  Rfd8 {[%clk 0:01:56]} 17. f5 {[%clk 0:01:59]}  e5 {[%clk 0:01:55]} 18. Be3 {[%clk 0:01:55]}  a5 {[%clk 0:01:43]} 19. Rf2 {[%clk 0:01:44]}  b4 {[%clk 0:01:43]} 20. axb4 {[%clk 0:01:41]}  axb4 {[%clk 0:01:42]} 21. Nd5 {[%clk 0:01:39]}  Nxd5 {[%clk 0:01:38]} 22. Qxd5 {[%clk 0:01:36]}  Qxd5 {[%clk 0:01:31]} 23. Rxd5 {[%clk 0:01:37]}  Rc4 {[%clk 0:01:31]} 24. Rfd2 {[%clk 0:01:07]}  Rxe4 {[%clk 0:01:29]} 25. Bb6 {[%clk 0:01:07]}  Rc8 {[%clk 0:01:19]} 26. g4 {[%clk 0:00:57]}  h5 {[%clk 0:01:12]} 27. gxh5 {[%clk 0:00:52]}  Rh4 {[%clk 0:01:08]} 28. Ba5 {[%clk 0:00:44]}  Rxh3 {[%clk 0:00:53]} 29. Bxb4 {[%clk 0:00:42]}  Rxh5 {[%clk 0:00:54]} 30. Bxd6 {[%clk 0:00:40]}  Bxd6 {[%clk 0:00:54]} 31. Rxd6 {[%clk 0:00:41]}  Rxf5 {[%clk 0:00:54]} 32. b4 {[%clk 0:00:37]}  Rf4 {[%clk 0:00:51]} 33. b5 {[%clk 0:00:36]}  Rb4 {[%clk 0:00:51]} 34. Rd8+ {[%clk 0:00:33]}  Rxd8 {[%clk 0:00:49]} 35. Rxd8+ {[%clk 0:00:34]}  Kh7 {[%clk 0:00:50]} 36. Rd5 {[%clk 0:00:14]}  Rc4 {[%clk 0:00:47]} 37. b6 {[%clk 0:00:08]}  Rxc2 {[%clk 0:00:43]} 38. Rb5 {[%clk 0:00:07]}  Rc8 {[%clk 0:00:43]} 39. Rxe5 {[%clk 0:00:06]}  Rb8 {[%clk 0:00:41]} 40. Rb5 {[%clk 0:00:06]}  Rb7 {[%clk 0:00:42]} 41. Kg2 {[%clk 0:00:06]}  Kg6 {[%clk 0:00:41]} 42. Kg3 {[%clk 0:00:07]}  f6 {[%clk 0:00:38]} 43. Kf4 {[%clk 0:00:07]}  Kf7 {[%clk 0:00:38]} 44. Kf5 {[%clk 0:00:06]}  g6+ {[%clk 0:00:39]} 45. Kf4 {[%clk 0:00:07]}  Ke6 {[%clk 0:00:39]} 46. Ke4 {[%clk 0:00:07]}  g5 {[%clk 0:00:37]} 47. Rb1 {[%clk 0:00:05]}  f5+ {[%clk 0:00:36]} 48. Kd4 {[%clk 0:00:04]}  Kd6 {[%clk 0:00:33]} 49. Rf1 {[%clk 0:00:02]}  Ke6 {[%clk 0:00:28]} 50. Re1+ {[%clk 0:00:02]}  Kf6 {[%clk 0:00:28]} 51. Rb1 {[%clk 0:00:03]}  g4 {[%clk 0:00:28]} 52. Ke3 {[%clk 0:00:03]}  Kg5 {[%clk 0:00:28]} 53. Rb2 {[%clk 0:00:02]}  f4+ {[%clk 0:00:27]} 54. Ke4 {[%clk 0:00:03]}  f3 {[%clk 0:00:27]} 55. Rb5+ {[%clk 0:00:02]}  Kh4 {[%clk 0:00:27]} 56. Kf4 {[%clk 0:00:03]}  f2 {[%clk 0:00:26]} 57. Rb1 {[%clk 0:00:01]}  f1=Q+ {[%clk 0:00:25]} 58. Rxf1 {[%clk 0:00:01]}  Rf7+ {[%clk 0:00:26]} 59. Ke3 {[%clk 0:00:01]}  Rxf1 {[%clk 0:00:27]} 60. b7 {[%clk 0:00:02]}  Rb1 {[%clk 0:00:27]} 0-1


[Site "https://www.chess.com"]

[Event "Titled Tuesday Blitz November 08 Late 2022"]
[White "Deac, Bogdan-Daniel"]
[Black "Boruchovsky, Avital"]
[WhiteFideId "1226380"]
[BlackFideId "2800055"]
[WhiteElo "2648"]
[BlackElo "2458"]
[Result "0-1"]
[Round "09"]
[TimeControl "180+1"]
[Date "2022.11.08"]
[WhiteClock "0:00:01"]
[BlackClock "0:00:04"]

1. d4 {[%clk 0:03:00]}  Nf6 {[%clk 0:02:59]} 2. c4 {[%clk 0:03:01]}  e6 {[%clk 0:02:59]} 3. Nc3 {[%clk 0:03:01]}  d5 {[%clk 0:02:59]} 4. Nf3 {[%clk 0:03:01]}  c5 {[%clk 0:02:55]} 5. cxd5 {[%clk 0:02:59]}  Nxd5 {[%clk 0:02:54]} 6. e3 {[%clk 0:02:59]}  cxd4 {[%clk 0:02:49]} 7. exd4 {[%clk 0:02:59]}  Nc6 {[%clk 0:02:49]} 8. Bd3 {[%clk 0:02:58]}  Be7 {[%clk 0:02:46]} 9. O-O {[%clk 0:02:58]}  O-O {[%clk 0:02:46]} 10. Re1 {[%clk 0:02:59]}  Nf6 {[%clk 0:02:41]} 11. a3 {[%clk 0:02:58]}  b6 {[%clk 0:02:33]} 12. Bc2 {[%clk 0:02:56]}  Bb7 {[%clk 0:02:31]} 13. Qd3 {[%clk 0:02:55]}  Rc8 {[%clk 0:02:16]} 14. Bg5 {[%clk 0:02:46]}  g6 {[%clk 0:02:14]} 15. Bh6 {[%clk 0:02:41]}  Re8 {[%clk 0:02:14]} 16. Rad1 {[%clk 0:02:42]}  Nd5 {[%clk 0:02:09]} 17. Bc1 {[%clk 0:00:46]}  Nxc3 {[%clk 0:01:48]} 18. bxc3 {[%clk 0:00:47]}  Na5 {[%clk 0:01:43]} 19. Ba4 {[%clk 0:00:38]}  Bc6 {[%clk 0:01:35]} 20. Bxc6 {[%clk 0:00:38]}  Rxc6 {[%clk 0:01:33]} 21. Ne5 {[%clk 0:00:37]}  Rc7 {[%clk 0:01:28]} 22. Qf3 {[%clk 0:00:17]}  Bf6 {[%clk 0:01:19]} 23. d5 {[%clk 0:00:11]}  Bxe5 {[%clk 0:00:44]} 24. Rxe5 {[%clk 0:00:08]}  Rd7 {[%clk 0:00:41]} 25. Bg5 {[%clk 0:00:06]}  Qc8 {[%clk 0:00:13]} 26. Bf6 {[%clk 0:00:05]}  Rxd5 {[%clk 0:00:07]} 27. Rexd5 {[%clk 0:00:04]}  exd5 {[%clk 0:00:08]} 28. h4 {[%clk 0:00:04]}  Nc4 {[%clk 0:00:06]} 29. Rxd5 {[%clk 0:00:04]}  Qe6 {[%clk 0:00:06]} 30. g3 {[%clk 0:00:03]}  Nd6 {[%clk 0:00:06]} 31. Kg2 {[%clk 0:00:03]}  Nf5 {[%clk 0:00:05]} 32. Bg5 {[%clk 0:00:02]}  f6 {[%clk 0:00:05]} 33. Bf4 {[%clk 0:00:02]}  Rc8 {[%clk 0:00:04]} 34. c4 {[%clk 0:00:02]}  Rxc4 {[%clk 0:00:04]} 35. Rd8+ {[%clk 0:00:03]}  Kf7 {[%clk 0:00:04]} 36. Qb7+ {[%clk 0:00:03]}  Ne7 {[%clk 0:00:03]} 37. Rd7 {[%clk 0:00:03]}  Qe4+ {[%clk 0:00:03]} 38. Qxe4 {[%clk 0:00:03]}  Rxe4 {[%clk 0:00:04]} 39. Rxa7 {[%clk 0:00:04]}  Ke6 {[%clk 0:00:04]} 40. Be3 {[%clk 0:00:04]}  Nd5 {[%clk 0:00:04]} 41. Kf3 {[%clk 0:00:03]}  Rc4 {[%clk 0:00:03]} 42. Bh6 {[%clk 0:00:03]}  Rc3+ {[%clk 0:00:03]} 43. Ke2 {[%clk 0:00:03]}  Rc2+ {[%clk 0:00:04]} 44. Kf3 {[%clk 0:00:03]}  Ra2 {[%clk 0:00:04]} 45. Rxh7 {[%clk 0:00:02]}  Rxa3+ {[%clk 0:00:04]} 46. Kg2 {[%clk 0:00:03]}  b5 {[%clk 0:00:04]} 47. Rb7 {[%clk 0:00:03]}  b4 {[%clk 0:00:04]} 48. Bf8 {[%clk 0:00:03]}  Ra2 {[%clk 0:00:02]} 49. Rb8 {[%clk 0:00:02]}  Rb2 {[%clk 0:00:02]} 50. Kf3 {[%clk 0:00:03]}  b3 {[%clk 0:00:03]} 51. g4 {[%clk 0:00:03]}  Rb1 {[%clk 0:00:03]} 52. h5 {[%clk 0:00:04]}  gxh5 {[%clk 0:00:04]} 53. gxh5 {[%clk 0:00:05]}  Kf5 {[%clk 0:00:04]} 54. h6 {[%clk 0:00:04]}  Kg6 {[%clk 0:00:04]} 55. Rb7 {[%clk 0:00:04]}  b2 {[%clk 0:00:03]} 56. Rg7+ {[%clk 0:00:03]}  Kf5 {[%clk 0:00:02]} 57. Rb7 {[%clk 0:00:03]}  Kg6 {[%clk 0:00:02]} 58. Rg7+ {[%clk 0:00:03]}  Kf5 {[%clk 0:00:01]} 59. h7 {[%clk 0:00:03]}  Rh1 {[%clk 0:00:02]} 60. Rb7 {[%clk 0:00:03]}  Rxh7 {[%clk 0:00:01]} 61. Rxb2 {[%clk 0:00:04]}  Rh3+ {[%clk 0:00:02]} 62. Ke2 {[%clk 0:00:04]}  Rc3 {[%clk 0:00:03]} 63. Rb5 {[%clk 0:00:03]}  Ke6 {[%clk 0:00:04]} 64. Ra5 {[%clk 0:00:03]}  Rc2+ {[%clk 0:00:04]} 65. Ke1 {[%clk 0:00:03]}  Rc6 {[%clk 0:00:05]} 66. Bh6 {[%clk 0:00:03]}  f5 {[%clk 0:00:06]} 67. Bd2 {[%clk 0:00:03]}  Nf6 {[%clk 0:00:05]} 68. Ke2 {[%clk 0:00:03]}  Ne4 {[%clk 0:00:06]} 69. Be3 {[%clk 0:00:03]}  Rc2+ {[%clk 0:00:06]} 70. Kf3 {[%clk 0:00:04]}  Rc6 {[%clk 0:00:06]} 71. Kf4 {[%clk 0:00:04]}  Nd6 {[%clk 0:00:07]} 72. Re5+ {[%clk 0:00:03]}  Kf6 {[%clk 0:00:08]} 73. Rd5 {[%clk 0:00:03]}  Rc4+ {[%clk 0:00:08]} 74. Kf3 {[%clk 0:00:03]}  Nf7 {[%clk 0:00:08]} 75. Ra5 {[%clk 0:00:02]}  Ne5+ {[%clk 0:00:09]} 76. Ke2 {[%clk 0:00:03]}  f4 {[%clk 0:00:09]} 77. Bd2 {[%clk 0:00:02]}  Kf5 {[%clk 0:00:09]} 78. f3 {[%clk 0:00:02]}  Kf6 {[%clk 0:00:08]} 79. Ra6+ {[%clk 0:00:01]}  Kf5 {[%clk 0:00:09]} 80. Ra5 {[%clk 0:00:02]}  Kf6 {[%clk 0:00:09]} 81. Rd5 {[%clk 0:00:02]}  Ke6 {[%clk 0:00:09]} 82. Rd8 {[%clk 0:00:02]}  Ra4 {[%clk 0:00:09]} 83. Re8+ {[%clk 0:00:02]}  Kd5 {[%clk 0:00:10]} 84. Rd8+ {[%clk 0:00:02]}  Ke6 {[%clk 0:00:10]} 85. Rf8 {[%clk 0:00:02]}  Ng6 {[%clk 0:00:09]} 86. Re8+ {[%clk 0:00:02]}  Kf5 {[%clk 0:00:09]} 87. Rb8 {[%clk 0:00:03]}  Ke5 {[%clk 0:00:06]} 88. Rb5+ {[%clk 0:00:02]}  Ke6 {[%clk 0:00:06]} 89. Rb6+ {[%clk 0:00:02]}  Kf5 {[%clk 0:00:06]} 90. Bc3 {[%clk 0:00:03]}  Rc4 {[%clk 0:00:06]} 91. Rb5+ {[%clk 0:00:02]}  Ke6 {[%clk 0:00:06]} 92. Kd3 {[%clk 0:00:02]}  Rc6 {[%clk 0:00:06]} 93. Bd4 {[%clk 0:00:02]}  Rc1 {[%clk 0:00:06]} 94. Rb6+ {[%clk 0:00:02]}  Kf5 {[%clk 0:00:06]} 95. Rb5+ {[%clk 0:00:02]}  Ke6 {[%clk 0:00:06]} 96. Rg5 {[%clk 0:00:03]}  Ne7 {[%clk 0:00:06]} 97. Ke4 {[%clk 0:00:03]}  Rd1 {[%clk 0:00:06]} 98. Re5+ {[%clk 0:00:02]}  Kd6 {[%clk 0:00:06]} 99. Ra5 {[%clk 0:00:03]}  Nc6 {[%clk 0:00:05]} 100. Bc5+ {[%clk 0:00:03]}  Ke6 {[%clk 0:00:05]} 101. Ra6 {[%clk 0:00:03]}  Re1+ {[%clk 0:00:05]} 102. Kxf4 {[%clk 0:00:03]}  Kd5 {[%clk 0:00:06]} 103. Be3 {[%clk 0:00:04]}  Rb1 {[%clk 0:00:06]} 104. Ra3 {[%clk 0:00:03]}  Rb4+ {[%clk 0:00:05]} 105. Kg5 {[%clk 0:00:04]}  Ne5 {[%clk 0:00:06]} 106. Ra5+ {[%clk 0:00:02]}  Ke6 {[%clk 0:00:05]} 107. f4 {[%clk 0:00:02]}  Nc4 {[%clk 0:00:05]} 108. f5+ {[%clk 0:00:02]}  Kd6 {[%clk 0:00:04]} 109. Ra6+ {[%clk 0:00:02]}  Kd7 {[%clk 0:00:04]} 110. Ra7+ {[%clk 0:00:02]}  Ke8 {[%clk 0:00:04]} 111. Bc5 {[%clk 0:00:02]}  Rb5 {[%clk 0:00:04]} 112. Ra8+ {[%clk 0:00:01]}  Kf7 {[%clk 0:00:04]} 113. Ra7+ {[%clk 0:00:02]}  Ke8 {[%clk 0:00:04]} 114. Ba3 {[%clk 0:00:02]}  Ne3 {[%clk 0:00:04]} 115. Ra8+ {[%clk 0:00:01]}  Kd7 {[%clk 0:00:04]} 116. Ra7+ {[%clk 0:00:01]}  Kd8 {[%clk 0:00:04]} 0-1


[Site "https://www.chess.com"]